[Event "Titled Tuesday Blitz February 14 Early 2023"]
[White "Manon-og, Ramon Jr."]
[Black "Filgueira, Hernan"]
[WhiteFideId "5200776"]
[BlackFideId "101770"]
[WhiteElo "1999"]
[BlackElo "2283"]
[Result "0-1"]
[Round "02"]
[TimeControl "180+2"]
[Date "2023.02.15"]
[WhiteClock "0:00:21"]
[BlackClock "0:00:52"]

1. e4 {[%clk 0:02:55]}  d6 {[%clk 0:02:59]} 2. d4 {[%clk 0:02:55]}  Nf6 {[%clk 0:02:59]} 3. Nc3 {[%clk 0:02:56]}  c6 {[%clk 0:02:59]} 4. Be3 {[%clk 0:02:56]}  Nbd7 {[%clk 0:02:57]} 5. Qd2 {[%clk 0:02:56]}  e5 {[%clk 0:02:57]} 6. dxe5 {[%clk 0:02:56]}  dxe5 {[%clk 0:02:57]} 7. h3 {[%clk 0:02:56]}  Bb4 {[%clk 0:02:55]} 8. Bd3 {[%clk 0:02:56]}  O-O {[%clk 0:02:51]} 9. Nf3 {[%clk 0:02:56]}  Qc7 {[%clk 0:02:50]} 10. O-O {[%clk 0:02:56]}  Re8 {[%clk 0:02:48]} 11. a3 {[%clk 0:02:56]}  Bc5 {[%clk 0:02:47]} 12. b4 {[%clk 0:02:55]}  Bxe3 {[%clk 0:02:47]} 13. Qxe3 {[%clk 0:02:56]}  Nf8 {[%clk 0:02:47]} 14. Bc4 {[%clk 0:02:49]}  h6 {[%clk 0:02:46]} 15. Nh4 {[%clk 0:02:49]}  Be6 {[%clk 0:02:45]} 16. Qe2 {[%clk 0:02:49]}  Bxc4 {[%clk 0:02:42]} 17. Qxc4 {[%clk 0:02:49]}  Ne6 {[%clk 0:02:42]} 18. Nf5 {[%clk 0:02:46]}  Kh7 {[%clk 0:02:39]} 19. Rad1 {[%clk 0:02:44]}  Rad8 {[%clk 0:02:38]} 20. Rxd8 {[%clk 0:02:39]}  Rxd8 {[%clk 0:02:38]} 21. Rd1 {[%clk 0:02:40]}  Rxd1+ {[%clk 0:02:36]} 22. Nxd1 {[%clk 0:02:41]}  g6 {[%clk 0:02:36]} 23. Nh4 {[%clk 0:02:20]}  b5 {[%clk 0:02:34]} 24. Qd3 {[%clk 0:02:17]}  Nf4 {[%clk 0:02:32]} 25. Qe3 {[%clk 0:02:12]}  a5 {[%clk 0:02:19]} 26. Nf3 {[%clk 0:02:11]}  axb4 {[%clk 0:02:19]} 27. axb4 {[%clk 0:02:11]}  Nd7 {[%clk 0:02:15]} 28. Nb2 {[%clk 0:02:05]}  Kg7 {[%clk 0:02:11]} 29. Nd3 {[%clk 0:02:05]}  Nxd3 {[%clk 0:02:07]} 30. Qxd3 {[%clk 0:02:00]}  Nb6 {[%clk 0:02:06]} 31. h4 {[%clk 0:01:41]}  Qe7 {[%clk 0:02:04]} 32. h5 {[%clk 0:01:40]}  Nc4 {[%clk 0:02:02]} 33. hxg6 {[%clk 0:01:39]}  fxg6 {[%clk 0:02:01]} 34. c3 {[%clk 0:01:36]}  Kf6 {[%clk 0:01:57]} 35. Nh4 {[%clk 0:01:34]}  Qd6 {[%clk 0:01:50]} 36. Qf3+ {[%clk 0:01:32]}  Kg7 {[%clk 0:01:50]} 37. Qg4 {[%clk 0:01:32]}  Kh7 {[%clk 0:01:46]} 38. Qc8 {[%clk 0:01:27]}  Qf6 {[%clk 0:01:38]} 39. g3 {[%clk 0:01:23]}  h5 {[%clk 0:01:33]} 40. Qd7+ {[%clk 0:01:21]}  Kh6 {[%clk 0:01:32]} 41. Kg2 {[%clk 0:01:14]}  Qd6 {[%clk 0:01:26]} 42. Qe8 {[%clk 0:01:09]}  Qf6 {[%clk 0:01:25]} 43. Qg8 {[%clk 0:00:58]}  Qg7 {[%clk 0:01:22]} 44. Qe8 {[%clk 0:00:57]}  Qf6 {[%clk 0:01:22]} 45. Qg8 {[%clk 0:00:57]}  Qg7 {[%clk 0:01:22]} 46. Qe6 {[%clk 0:00:57]}  Kh7 {[%clk 0:01:19]} 47. Qxc6 {[%clk 0:00:56]}  Na3 {[%clk 0:01:11]} 48. Qa6 {[%clk 0:00:52]}  Nb1 {[%clk 0:01:08]} 49. Qxb5 {[%clk 0:00:48]}  Nxc3 {[%clk 0:01:08]} 50. Qc6 {[%clk 0:00:48]}  Ne2 {[%clk 0:01:05]} 51. b5 {[%clk 0:00:47]}  Nd4 {[%clk 0:01:05]} 52. Qc5 {[%clk 0:00:38]}  Qb7 {[%clk 0:01:01]} 53. b6 {[%clk 0:00:33]}  Qxe4+ {[%clk 0:01:01]} 54. Kh2 {[%clk 0:00:30]}  g5 {[%clk 0:00:52]} 55. Qe7+ {[%clk 0:00:21]}  Kh6 {[%clk 0:00:52]} 0-1


[Site "https://www.chess.com"]

[Event "Titled Tuesday Blitz February 14 Early 2023"]
[White "Mamedov, Edgar"]
[Black "Kotepalli, Sai Nirupama"]
[WhiteFideId "13739980"]
[BlackFideId "5039444"]
[WhiteElo "2193"]
[BlackElo "1910"]
[Result "1-0"]
[Round "02"]
[TimeControl "180+2"]
[Date "2023.02.15"]
[WhiteClock "0:02:20"]
[BlackClock "0:00:43"]

1. d4 {[%clk 0:03:00]}  g6 {[%clk 0:02:54]} 2. e4 {[%clk 0:02:57]}  Bg7 {[%clk 0:02:53]} 3. Nf3 {[%clk 0:02:57]}  d6 {[%clk 0:02:49]} 4. Nc3 {[%clk 0:02:56]}  Nf6 {[%clk 0:02:48]} 5. g3 {[%clk 0:02:55]}  O-O {[%clk 0:02:46]} 6. Bg2 {[%clk 0:02:55]}  Nbd7 {[%clk 0:02:37]} 7. O-O {[%clk 0:02:55]}  c5 {[%clk 0:02:36]} 8. Re1 {[%clk 0:02:53]}  cxd4 {[%clk 0:02:34]} 9. Nxd4 {[%clk 0:02:52]}  a6 {[%clk 0:02:34]} 10. a4 {[%clk 0:02:51]}  Nc5 {[%clk 0:02:27]} 11. a5 {[%clk 0:02:48]}  Qc7 {[%clk 0:02:11]} 12. Nd5 {[%clk 0:02:45]}  Nxd5 {[%clk 0:02:05]} 13. exd5 {[%clk 0:02:45]}  e5 {[%clk 0:01:58]} 14. dxe6 {[%clk 0:02:42]}  Nxe6 {[%clk 0:01:56]} 15. Nxe6 {[%clk 0:02:42]}  Bxe6 {[%clk 0:01:57]} 16. c3 {[%clk 0:02:42]}  Rfe8 {[%clk 0:01:47]} 17. Be3 {[%clk 0:02:40]}  d5 {[%clk 0:01:36]} 18. Bd4 {[%clk 0:02:31]}  Bxd4 {[%clk 0:01:24]} 19. Qxd4 {[%clk 0:02:30]}  Rad8 {[%clk 0:01:22]} 20. h4 {[%clk 0:02:29]}  Re7 {[%clk 0:01:12]} 21. h5 {[%clk 0:02:27]}  gxh5 {[%clk 0:01:11]} 22. Qh4 {[%clk 0:02:26]}  Rde8 {[%clk 0:00:58]} 23. Qxh5 {[%clk 0:02:26]}  Qc4 {[%clk 0:00:53]} 24. Qg5+ {[%clk 0:02:20]}  Kf8 {[%clk 0:00:48]} 25. Qh6+ {[%clk 0:02:20]}  Kg8 {[%clk 0:00:43]} 26. Re5 {[%clk 0:02:20]} 1-0


[Site "https://www.chess.com"]

[Event "Titled Tuesday Blitz February 14 Early 2023"]
[White "Ruiz Aguilar, Pablo Alexander"]
[Black "Arenas, David"]
[WhiteFideId "4401352"]
[BlackFideId "4403177"]
[WhiteElo "2161"]
[BlackElo "2426"]
[Result "0-1"]
[Round "02"]
[TimeControl "180+2"]
[Date "2023.02.15"]
[WhiteClock "0:00:02"]
[BlackClock "0:00:08"]

1. e4 {[%clk 0:03:00]}  c5 {[%clk 0:02:58]} 2. Nf3 {[%clk 0:03:01]}  d6 {[%clk 0:02:58]} 3. d4 {[%clk 0:03:01]}  Nf6 {[%clk 0:02:58]} 4. Nc3 {[%clk 0:03:00]}  cxd4 {[%clk 0:02:59]} 5. Nxd4 {[%clk 0:03:00]}  g6 {[%clk 0:02:59]} 6. Be3 {[%clk 0:02:55]}  Bg7 {[%clk 0:02:56]} 7. f3 {[%clk 0:02:55]}  O-O {[%clk 0:02:56]} 8. Qd2 {[%clk 0:02:52]}  Nc6 {[%clk 0:02:56]} 9. Bc4 {[%clk 0:02:52]}  Bd7 {[%clk 0:02:56]} 10. O-O-O {[%clk 0:02:45]}  Rc8 {[%clk 0:02:56]} 11. Bb3 {[%clk 0:02:45]}  Ne5 {[%clk 0:02:56]} 12. Bg5 {[%clk 0:02:44]}  Rc5 {[%clk 0:02:50]} 13. Rhe1 {[%clk 0:02:43]}  Qa5 {[%clk 0:02:34]} 14. Kb1 {[%clk 0:02:19]}  Rfc8 {[%clk 0:02:31]} 15. Bxf6 {[%clk 0:02:10]}  Bxf6 {[%clk 0:02:23]} 16. Nd5 {[%clk 0:02:10]}  Qxd2 {[%clk 0:02:22]} 17. Nxf6+ {[%clk 0:02:09]}  Kg7 {[%clk 0:02:23]} 18. Nh5+ {[%clk 0:02:07]}  gxh5 {[%clk 0:02:22]} 19. Rxd2 {[%clk 0:02:06]}  Kf6 {[%clk 0:02:13]} 20. c3 {[%clk 0:02:03]}  Nc4 {[%clk 0:02:03]} 21. Bxc4 {[%clk 0:02:02]}  Rxc4 {[%clk 0:02:03]} 22. Ne2 {[%clk 0:01:44]}  Be6 {[%clk 0:01:48]} 23. Nf4 {[%clk 0:01:37]}  h4 {[%clk 0:01:48]} 24. h3 {[%clk 0:01:37]}  R4c5 {[%clk 0:01:38]} 25. Nd3 {[%clk 0:01:29]}  Ra5 {[%clk 0:01:37]} 26. Nb4 {[%clk 0:01:22]}  Rg8 {[%clk 0:01:32]} 27. Nd5+ {[%clk 0:01:17]}  Bxd5 {[%clk 0:01:23]} 28. exd5 {[%clk 0:01:17]}  Rg5 {[%clk 0:01:14]} 29. c4 {[%clk 0:00:57]}  b5 {[%clk 0:00:58]} 30. b3 {[%clk 0:00:57]}  bxc4 {[%clk 0:00:57]} 31. bxc4 {[%clk 0:00:57]}  Re5 {[%clk 0:00:51]} 32. Rde2 {[%clk 0:00:51]}  Rxe2 {[%clk 0:00:37]} 33. Rxe2 {[%clk 0:00:51]}  e6 {[%clk 0:00:38]} 34. dxe6 {[%clk 0:00:46]}  fxe6 {[%clk 0:00:39]} 35. Kb2 {[%clk 0:00:46]}  Re5 {[%clk 0:00:35]} 36. Rd2 {[%clk 0:00:43]}  Ke7 {[%clk 0:00:33]} 37. Kc3 {[%clk 0:00:41]}  Kd7 {[%clk 0:00:24]} 38. Kd4 {[%clk 0:00:38]}  Kc6 {[%clk 0:00:22]} 39. f4 {[%clk 0:00:26]}  Re1 {[%clk 0:00:20]} 40. Rf2 {[%clk 0:00:18]}  a6 {[%clk 0:00:19]} 41. f5 {[%clk 0:00:17]}  exf5 {[%clk 0:00:19]} 42. Rxf5 {[%clk 0:00:10]}  Re2 {[%clk 0:00:19]} 43. Rf4 {[%clk 0:00:07]}  Rxg2 {[%clk 0:00:15]} 44. Rxh4 {[%clk 0:00:08]}  Rd2+ {[%clk 0:00:14]} 45. Kc3 {[%clk 0:00:06]}  Rxa2 {[%clk 0:00:15]} 46. Rxh7 {[%clk 0:00:06]}  Rh2 {[%clk 0:00:14]} 47. Kd4 {[%clk 0:00:04]}  a5 {[%clk 0:00:13]} 48. Ra7 {[%clk 0:00:03]}  Kb6 {[%clk 0:00:13]} 49. Rd7 {[%clk 0:00:02]}  Kc6 {[%clk 0:00:11]} 50. Ra7 {[%clk 0:00:02]}  Ra2 {[%clk 0:00:11]} 51. h4 {[%clk 0:00:02]}  Kb6 {[%clk 0:00:08]} 0-1


[Site "https://www.chess.com"]

[Event "Titled Tuesday Blitz February 14 Early 2023"]
[White "Nikologorsky, Matfei"]
[Black "Girsh, Daniel"]
[WhiteFideId "24102474"]
[BlackFideId "30949190"]
[WhiteElo "2182"]
[BlackElo "2123"]
[Result "0-1"]
[Round "02"]
[TimeControl "180+2"]
[Date "2023.02.15"]
[WhiteClock "0:00:16"]
[BlackClock "0:01:09"]

1. e4 {[%clk 0:03:00]}  c5 {[%clk 0:02:57]} 2. Nf3 {[%clk 0:03:00]}  d6 {[%clk 0:02:56]} 3. d4 {[%clk 0:03:00]}  cxd4 {[%clk 0:02:57]} 4. Nxd4 {[%clk 0:03:01]}  Nf6 {[%clk 0:02:58]} 5. Nc3 {[%clk 0:03:01]}  a6 {[%clk 0:02:57]} 6. h3 {[%clk 0:03:01]}  Nc6 {[%clk 0:02:51]} 7. g4 {[%clk 0:02:53]}  e5 {[%clk 0:02:51]} 8. Nde2 {[%clk 0:02:48]}  Be6 {[%clk 0:02:46]} 9. Ng3 {[%clk 0:02:41]}  Be7 {[%clk 0:02:47]} 10. Bg2 {[%clk 0:02:17]}  O-O {[%clk 0:02:46]} 11. g5 {[%clk 0:02:17]}  Nd7 {[%clk 0:02:46]} 12. h4 {[%clk 0:02:17]}  b5 {[%clk 0:02:44]} 13. Nf5 {[%clk 0:02:13]}  Nb6 {[%clk 0:02:43]} 14. Be3 {[%clk 0:01:35]}  Nc4 {[%clk 0:02:43]} 15. b3 {[%clk 0:01:34]}  Nxe3 {[%clk 0:02:42]} 16. Nxe3 {[%clk 0:01:33]}  Nd4 {[%clk 0:02:40]} 17. Ncd5 {[%clk 0:01:28]}  f6 {[%clk 0:02:26]} 18. c3 {[%clk 0:01:20]}  Nc6 {[%clk 0:02:26]} 19. gxf6 {[%clk 0:01:15]}  Bxf6 {[%clk 0:02:26]} 20. Nxf6+ {[%clk 0:01:03]}  Qxf6 {[%clk 0:02:25]} 21. Qd2 {[%clk 0:01:04]}  b4 {[%clk 0:02:22]} 22. Rc1 {[%clk 0:00:57]}  bxc3 {[%clk 0:02:21]} 23. Rxc3 {[%clk 0:00:58]}  Nd4 {[%clk 0:02:21]} 24. h5 {[%clk 0:00:51]}  Rac8 {[%clk 0:02:21]} 25. Rxc8 {[%clk 0:00:49]}  Rxc8 {[%clk 0:02:21]} 26. h6 {[%clk 0:00:49]}  Qf4 {[%clk 0:02:16]} 27. hxg7 {[%clk 0:00:42]}  Rc7 {[%clk 0:01:52]} 28. Rg1 {[%clk 0:00:19]}  Rxg7 {[%clk 0:01:50]} 29. Kf1 {[%clk 0:00:20]}  Qh2 {[%clk 0:01:45]} 30. Nf5 {[%clk 0:00:16]}  Bxf5 {[%clk 0:01:35]} 31. exf5 {[%clk 0:00:15]}  Kf8 {[%clk 0:01:33]} 32. Qe3 {[%clk 0:00:14]}  Qf4 {[%clk 0:01:30]} 33. Qxf4 {[%clk 0:00:14]}  exf4 {[%clk 0:01:30]} 34. Be4 {[%clk 0:00:14]}  Rxg1+ {[%clk 0:01:29]} 35. Kxg1 {[%clk 0:00:15]}  Kf7 {[%clk 0:01:29]} 36. Kg2 {[%clk 0:00:15]}  Kf6 {[%clk 0:01:28]} 37. Kh3 {[%clk 0:00:15]}  Ke5 {[%clk 0:01:26]} 38. f3 {[%clk 0:00:15]}  Nxf5 {[%clk 0:01:23]} 39. Kg4 {[%clk 0:00:14]}  Ne3+ {[%clk 0:01:18]} 40. Kg5 {[%clk 0:00:14]}  d5 {[%clk 0:01:18]} 41. Bxh7 {[%clk 0:00:15]}  Nd1 {[%clk 0:01:15]} 42. b4 {[%clk 0:00:14]}  Nc3 {[%clk 0:01:13]} 43. a3 {[%clk 0:00:13]}  Nb5 {[%clk 0:01:12]} 44. Bd3 {[%clk 0:00:13]}  Kd4 {[%clk 0:01:06]} 45. Bxb5 {[%clk 0:00:12]}  axb5 {[%clk 0:01:07]} 46. Kxf4 {[%clk 0:00:12]}  Kc3 {[%clk 0:01:08]} 47. Ke5 {[%clk 0:00:13]}  d4 {[%clk 0:01:08]} 48. f4 {[%clk 0:00:14]}  d3 {[%clk 0:01:09]} 49. f5 {[%clk 0:00:15]}  d2 {[%clk 0:01:09]} 50. f6 {[%clk 0:00:15]}  d1=Q {[%clk 0:01:09]} 51. f7 {[%clk 0:00:16]}  Qd8 {[%clk 0:01:09]} 52. Ke6 {[%clk 0:00:16]}  Qf8 {[%clk 0:01:09]} 53. a4 {[%clk 0:00:15]}  bxa4 {[%clk 0:01:08]} 54. b5 {[%clk 0:00:15]}  a3 {[%clk 0:01:08]} 55. b6 {[%clk 0:00:16]}  a2 {[%clk 0:01:09]} 56. b7 {[%clk 0:00:16]}  a1=Q {[%clk 0:01:09]} 0-1


[Site "https://www.chess.com"]

[Event "Titled Tuesday Blitz February 14 Early 2023"]
[White "Kuzmin, Roman"]
[Black "Skaric, Djuro"]
[WhiteFideId "44134932"]
[BlackFideId "934569"]
[WhiteElo "2198"]
[BlackElo "2334"]
[Result "1-0"]
[Round "02"]
[TimeControl "180+2"]
[Date "2023.02.15"]
[WhiteClock "0:00:16"]
[BlackClock "0:00:32"]

1. e4 {[%clk 0:03:00]}  d6 {[%clk 0:02:59]} 2. d4 {[%clk 0:03:00]}  g6 {[%clk 0:02:59]} 3. Nc3 {[%clk 0:03:00]}  Bg7 {[%clk 0:02:58]} 4. h4 {[%clk 0:03:00]}  h5 {[%clk 0:02:57]} 5. Nf3 {[%clk 0:03:00]}  Nf6 {[%clk 0:02:57]} 6. Ng5 {[%clk 0:03:00]}  Nc6 {[%clk 0:02:57]} 7. f3 {[%clk 0:02:54]}  e5 {[%clk 0:02:55]} 8. Bc4 {[%clk 0:02:45]}  O-O {[%clk 0:02:51]} 9. d5 {[%clk 0:02:37]}  Nd4 {[%clk 0:02:43]} 10. Ne2 {[%clk 0:02:32]}  c5 {[%clk 0:02:36]} 11. c3 {[%clk 0:02:29]}  Nxe2 {[%clk 0:02:21]} 12. Bxe2 {[%clk 0:02:21]}  b5 {[%clk 0:02:20]} 13. Bxb5 {[%clk 0:02:18]}  Rb8 {[%clk 0:02:16]} 14. Be2 {[%clk 0:02:17]}  a5 {[%clk 0:02:10]} 15. Qc2 {[%clk 0:02:13]}  a4 {[%clk 0:02:09]} 16. Qxa4 {[%clk 0:02:10]}  Qb6 {[%clk 0:02:06]} 17. O-O {[%clk 0:01:52]}  Bd7 {[%clk 0:02:06]} 18. Qc2 {[%clk 0:01:48]}  Ra8 {[%clk 0:02:05]} 19. Be3 {[%clk 0:01:43]}  Qa5 {[%clk 0:01:53]} 20. a3 {[%clk 0:01:37]}  Rfc8 {[%clk 0:01:44]} 21. g4 {[%clk 0:01:28]}  c4 {[%clk 0:01:42]} 22. Rf2 {[%clk 0:00:57]}  Rab8 {[%clk 0:01:34]} 23. Raf1 {[%clk 0:00:56]}  Qb5 {[%clk 0:01:33]} 24. Bd1 {[%clk 0:00:55]}  hxg4 {[%clk 0:01:18]} 25. fxg4 {[%clk 0:00:54]}  Bxg4 {[%clk 0:01:18]} 26. Rxf6 {[%clk 0:00:33]}  Bxd1 {[%clk 0:01:17]} 27. Qf2 {[%clk 0:00:33]}  Qxb2 {[%clk 0:01:11]} 28. Rxd1 {[%clk 0:00:27]}  Qxf2+ {[%clk 0:01:10]} 29. Rxf2 {[%clk 0:00:27]}  Rc7 {[%clk 0:01:02]} 30. Rdf1 {[%clk 0:00:26]}  Rbb7 {[%clk 0:00:54]} 31. a4 {[%clk 0:00:25]}  Bh6 {[%clk 0:00:47]} 32. a5 {[%clk 0:00:25]}  f6 {[%clk 0:00:41]} 33. Rxf6 {[%clk 0:00:24]}  Rb3 {[%clk 0:00:38]} 34. Rxg6+ {[%clk 0:00:23]}  Rg7 {[%clk 0:00:36]} 35. Rxh6 {[%clk 0:00:20]}  Rxc3 {[%clk 0:00:36]} 36. Rf3 {[%clk 0:00:16]}  Ra3 {[%clk 0:00:36]} 37. Rxd6 {[%clk 0:00:16]}  Rc7 {[%clk 0:00:34]} 38. Rd8+ {[%clk 0:00:15]}  Kg7 {[%clk 0:00:33]} 39. Ne6+ {[%clk 0:00:16]}  Kg6 {[%clk 0:00:32]} 40. Rg8+ {[%clk 0:00:16]} 1-0


[Site "https://www.chess.com"]

[Event "Titled Tuesday Blitz February 14 Early 2023"]
[White "Weisz, Bryan"]
[Black "Novikov, Evgenij"]
[WhiteFideId "30934133"]
[BlackFideId "4125380"]
[WhiteElo "1973"]
[BlackElo "2276"]
[Result "0-1"]
[Round "02"]
[TimeControl "180+2"]
[Date "2023.02.15"]
[WhiteClock "0:00:10"]
[BlackClock "0:00:14"]

1. e4 {[%clk 0:03:00]}  c5 {[%clk 0:02:57]} 2. Nf3 {[%clk 0:03:01]}  e6 {[%clk 0:02:55]} 3. d4 {[%clk 0:03:01]}  cxd4 {[%clk 0:02:56]} 4. Nxd4 {[%clk 0:03:00]}  a6 {[%clk 0:02:56]} 5. a3 {[%clk 0:02:59]}  Nc6 {[%clk 0:02:50]} 6. c4 {[%clk 0:02:49]}  Bc5 {[%clk 0:02:31]} 7. Nc2 {[%clk 0:02:34]}  Nf6 {[%clk 0:02:21]} 8. Nc3 {[%clk 0:02:33]}  O-O {[%clk 0:02:19]} 9. b4 {[%clk 0:02:31]}  Ba7 {[%clk 0:02:15]} 10. Be3 {[%clk 0:02:26]}  Bb8 {[%clk 0:02:03]} 11. Be2 {[%clk 0:02:18]}  Be5 {[%clk 0:01:57]} 12. Nd4 {[%clk 0:02:04]}  d5 {[%clk 0:01:50]} 13. cxd5 {[%clk 0:01:35]}  exd5 {[%clk 0:01:47]} 14. exd5 {[%clk 0:01:35]}  Nxd5 {[%clk 0:01:30]} 15. Nxd5 {[%clk 0:01:35]}  Qxd5 {[%clk 0:01:22]} 16. Nxc6 {[%clk 0:01:35]}  Qxc6 {[%clk 0:01:15]} 17. Rc1 {[%clk 0:01:35]}  Qxg2 {[%clk 0:01:04]} 18. Bf3 {[%clk 0:01:32]}  Qg6 {[%clk 0:01:00]} 19. Qd5 {[%clk 0:01:17]}  Re8 {[%clk 0:00:50]} 20. h4 {[%clk 0:00:59]}  Bf5 {[%clk 0:00:46]} 21. h5 {[%clk 0:00:57]}  Qf6 {[%clk 0:00:46]} 22. Qxb7 {[%clk 0:00:51]}  Rad8 {[%clk 0:00:39]} 23. Rg1 {[%clk 0:00:40]}  Bc3+ {[%clk 0:00:32]} 24. Kf1 {[%clk 0:00:37]}  Bh3+ {[%clk 0:00:20]} 25. Bg2 {[%clk 0:00:35]}  Rxe3 {[%clk 0:00:18]} 26. Bxh3 {[%clk 0:00:18]}  Rxh3 {[%clk 0:00:19]} 27. Qg2 {[%clk 0:00:12]}  Rxh5 {[%clk 0:00:17]} 28. Rxc3 {[%clk 0:00:10]}  Qxc3 {[%clk 0:00:14]} 0-1


[Site "https://www.chess.com"]

[Event "Titled Tuesday Blitz February 14 Early 2023"]
[White "Malka, Samuel"]
[Black "Dong, Khanh Linh"]
[WhiteFideId "20643675"]
[BlackFideId "12403040"]
[WhiteElo "2165"]
[BlackElo "1900"]
[Result "1-0"]
[Round "02"]
[TimeControl "180+2"]
[Date "2023.02.15"]
[WhiteClock "0:00:01"]
[BlackClock "0:00:03"]

1. d4 {[%clk 0:03:00]}  Nf6 {[%clk 0:02:58]} 2. c4 {[%clk 0:03:01]}  g6 {[%clk 0:02:58]} 3. Nc3 {[%clk 0:03:00]}  d5 {[%clk 0:02:58]} 4. cxd5 {[%clk 0:02:49]}  Nxd5 {[%clk 0:02:57]} 5. e4 {[%clk 0:02:50]}  Nxc3 {[%clk 0:02:57]} 6. bxc3 {[%clk 0:02:51]}  Bg7 {[%clk 0:02:57]} 7. Nf3 {[%clk 0:02:52]}  O-O {[%clk 0:02:57]} 8. Be2 {[%clk 0:02:43]}  c5 {[%clk 0:02:56]} 9. O-O {[%clk 0:02:43]}  Nc6 {[%clk 0:02:31]} 10. Be3 {[%clk 0:02:25]}  Qa5 {[%clk 0:02:19]} 11. d5 {[%clk 0:02:19]}  Ne5 {[%clk 0:02:13]} 12. Nd2 {[%clk 0:02:06]}  Qxc3 {[%clk 0:01:32]} 13. Rc1 {[%clk 0:02:03]}  Qa5 {[%clk 0:01:21]} 14. Bxc5 {[%clk 0:01:46]}  Re8 {[%clk 0:01:17]} 15. Nb3 {[%clk 0:01:35]}  Qd8 {[%clk 0:01:05]} 16. Ba3 {[%clk 0:01:19]}  Nd7 {[%clk 0:00:48]} 17. f4 {[%clk 0:01:15]}  Qb6+ {[%clk 0:00:45]} 18. Kh1 {[%clk 0:01:12]}  Qe3 {[%clk 0:00:35]} 19. Qd3 {[%clk 0:01:04]}  Qxd3 {[%clk 0:00:33]} 20. Bxd3 {[%clk 0:01:05]}  Nf6 {[%clk 0:00:23]} 21. Rc7 {[%clk 0:01:00]}  Bf8 {[%clk 0:00:19]} 22. Bb5 {[%clk 0:00:56]}  Rd8 {[%clk 0:00:17]} 23. Bxe7 {[%clk 0:00:54]}  Bxe7 {[%clk 0:00:16]} 24. Rxe7 {[%clk 0:00:55]}  a6 {[%clk 0:00:15]} 25. Bd3 {[%clk 0:00:52]}  Bd7 {[%clk 0:00:11]} 26. d6 {[%clk 0:00:44]}  Rac8 {[%clk 0:00:11]} 27. e5 {[%clk 0:00:41]}  Nd5 {[%clk 0:00:10]} 28. Rxd7 {[%clk 0:00:19]}  Rxd7 {[%clk 0:00:11]} 29. f5 {[%clk 0:00:20]}  Ne3 {[%clk 0:00:10]} 30. Rf3 {[%clk 0:00:19]}  Nxf5 {[%clk 0:00:09]} 31. Bxf5 {[%clk 0:00:13]}  gxf5 {[%clk 0:00:10]} 32. h3 {[%clk 0:00:13]}  Rc2 {[%clk 0:00:08]} 33. a3 {[%clk 0:00:08]}  b6 {[%clk 0:00:08]} 34. Nd4 {[%clk 0:00:08]}  Rc1+ {[%clk 0:00:06]} 35. Kh2 {[%clk 0:00:08]}  Re1 {[%clk 0:00:07]} 36. Rg3+ {[%clk 0:00:06]}  Kf8 {[%clk 0:00:07]} 37. Nf3 {[%clk 0:00:07]}  Re3 {[%clk 0:00:05]} 38. Rg5 {[%clk 0:00:07]}  f4 {[%clk 0:00:04]} 39. Rf5 {[%clk 0:00:07]}  Rxa3 {[%clk 0:00:04]} 40. Rxf4 {[%clk 0:00:06]}  Re3 {[%clk 0:00:04]} 41. Rh4 {[%clk 0:00:05]}  f6 {[%clk 0:00:03]} 42. Rf4 {[%clk 0:00:01]} 1-0


[Site "https://www.chess.com"]

[Event "Titled Tuesday Blitz February 14 Early 2023"]
[White "Yurasova, Daria"]
[Black "rikchessmx"]
[WhiteFideId "34146919"]
[WhiteElo "2095"]
[BlackElo "2312"]
[Result "1-0"]
[Round "02"]
[TimeControl "180+2"]
[Date "2023.02.15"]
[WhiteClock "0:00:14"]
[BlackClock "0:00:02"]

1. d4 {[%clk 0:03:00]}  Nf6 {[%clk 0:02:50]} 2. Bg5 {[%clk 0:02:59]}  Ne4 {[%clk 0:02:50]} 3. Bf4 {[%clk 0:02:59]}  c5 {[%clk 0:02:48]} 4. d5 {[%clk 0:02:43]}  Qb6 {[%clk 0:02:46]} 5. Nd2 {[%clk 0:02:39]}  Nxd2 {[%clk 0:02:42]} 6. Qxd2 {[%clk 0:02:40]}  Qxb2 {[%clk 0:02:42]} 7. Rd1 {[%clk 0:02:37]}  d6 {[%clk 0:02:41]} 8. e4 {[%clk 0:02:35]}  g6 {[%clk 0:02:39]} 9. Bd3 {[%clk 0:02:31]}  Bg7 {[%clk 0:02:39]} 10. Ne2 {[%clk 0:02:32]}  Qb4 {[%clk 0:02:37]} 11. O-O {[%clk 0:02:31]}  Qxd2 {[%clk 0:02:37]} 12. Bxd2 {[%clk 0:02:28]}  O-O {[%clk 0:02:36]} 13. f4 {[%clk 0:02:27]}  a6 {[%clk 0:02:34]} 14. a4 {[%clk 0:02:25]}  Bg4 {[%clk 0:02:31]} 15. Rb1 {[%clk 0:02:23]}  Ra7 {[%clk 0:02:20]} 16. a5 {[%clk 0:02:11]}  Bxe2 {[%clk 0:02:12]} 17. Bxe2 {[%clk 0:02:11]}  Nd7 {[%clk 0:02:12]} 18. Rb3 {[%clk 0:01:45]}  c4 {[%clk 0:01:55]} 19. Rb4 {[%clk 0:01:21]}  c3 {[%clk 0:01:51]} 20. Be3 {[%clk 0:01:20]}  Nc5 {[%clk 0:01:45]} 21. Rfb1 {[%clk 0:01:18]}  Rc8 {[%clk 0:01:38]} 22. Rc4 {[%clk 0:01:08]}  e6 {[%clk 0:01:22]} 23. dxe6 {[%clk 0:00:55]}  fxe6 {[%clk 0:01:20]} 24. Rb6 {[%clk 0:00:56]}  Rc6 {[%clk 0:01:14]} 25. e5 {[%clk 0:00:20]}  Rxb6 {[%clk 0:00:31]} 26. axb6 {[%clk 0:00:20]}  Ra8 {[%clk 0:00:31]} 27. exd6 {[%clk 0:00:19]}  Nd7 {[%clk 0:00:31]} 28. Rc7 {[%clk 0:00:18]}  Rd8 {[%clk 0:00:30]} 29. Bc4 {[%clk 0:00:18]}  Kf7 {[%clk 0:00:29]} 30. Rxb7 {[%clk 0:00:18]}  Ke8 {[%clk 0:00:18]} 31. Bxa6 {[%clk 0:00:17]}  e5 {[%clk 0:00:13]} 32. Bb5 {[%clk 0:00:14]}  exf4 {[%clk 0:00:12]} 33. Bxf4 {[%clk 0:00:14]}  Bd4+ {[%clk 0:00:12]} 34. Kf1 {[%clk 0:00:14]}  Bxb6 {[%clk 0:00:02]} 35. Rxb6 {[%clk 0:00:13]}  Kf7 {[%clk 0:00:01]} 36. Rb7 {[%clk 0:00:13]}  Ke6 {[%clk 0:00:01]} 37. Rxd7 {[%clk 0:00:13]}  Rxd7 {[%clk 0:00:01]} 38. Bxd7+ {[%clk 0:00:14]}  Kxd7 {[%clk 0:00:02]} 39. Ke2 {[%clk 0:00:14]} 1-0


[Site "https://www.chess.com"]